fUST/lending_fUST_20250608
["ID","MTS","AMOUNT","RATE_DAILY","PERIOD"]
[364988143,1749384651390,-1603.57,0.00021369,2]
[364988144,1749384651400,-2760.88,0.00021369,2]
[364988145,1749384651410,-440.0,0.00021369,2]
[364988146,1749384651420,-440.0,0.00021369,2]
[364988147,1749384651430,-151.0,0.00021369,2]
[364988148,1749384651440,-440.0,0.00021369,2]
[364988149,1749384651449,-440.0,0.00021369,2]
[364988150,1749384651459,-1583.43,0.00021369,2]
[364988151,1749384651469,-687.75,0.00021369,2]
[364988152,1749384651478,-450.46,0.00021369,2]
[364988153,1749384651488,-966.08,0.00021369,2]
[364988154,1749384651498,-1825.6,0.00021369,2]
[364988155,1749384651508,-681.26,0.00021369,2]
[364988156,1749384651518,-151.0,0.00021369,2]
[364988157,1749384651527,-440.0,0.00021369,2]
[364988158,1749384651537,-440.0,0.00021369,2]
[364988159,1749384651547,-151.0,0.00021369,2]
[364988160,1749384651559,-151.0,0.00021369,2]
[364988161,1749384651571,-287.0,0.00021458,2]
[364988162,1749384651581,-587.0,0.00021458,2]
[364988163,1749384651590,-1000.0,0.00021463,2]
[364988164,1749384651600,-1000.0,0.00021463,2]
[364988165,1749384651611,-500.0,0.00021515,2]
[364988166,1749384651620,-500.0,0.00021515,2]
[364988167,1749384651630,-500.0,0.00021533,2]
[364988168,1749384651641,-500.0,0.00021533,2]
[364988169,1749384651651,-500.0,0.00021592,2]
[364988170,1749384651661,-500.0,0.00021592,2]
[364988171,1749384651670,-150.0,0.000216,2]
[364988172,1749384651680,-500.0,0.00021624,2]
[364988173,1749384651689,-500.0,0.00021624,2]
[364988174,1749384651699,-151.0,0.00021624,2]
[364988175,1749384651708,-151.0,0.00021624,2]
[364988176,1749384651718,-151.0,0.00021624,2]
[364988177,1749384651727,-440.0,0.00021643,2]
[364988178,1749384651737,-440.0,0.00021643,2]
[364988179,1749384651746,-358.85934059,0.00021643,2]
[364988180,1749384651756,-440.0,0.00021643,2]
[364988181,1749384651765,-440.0,0.00021643,2]
[364988182,1749384651775,-296.083459,0.00021643,2]
[364988183,1749384651784,-440.0,0.00021643,2]
[364988184,1749384651794,-187.304419,0.00021643,2]
[364988185,1749384651803,-440.0,0.00021643,2]
[364988186,1749384651813,-717.08,0.00021643,2]
[364988187,1749384651822,-698.82,0.00021643,2]
[364988188,1749384651832,-440.0,0.00021643,2]
[364988189,1749384651841,-440.0,0.00021643,2]
[364988190,1749384651851,-440.0,0.00021643,2]
[364988191,1749384651861,-440.0,0.00021643,2]
[364988192,1749384651870,-440.0,0.00021643,2]
[364988193,1749384651879,-937.47,0.00021643,2]
[364988194,1749384651889,-440.0,0.00021643,2]
[364988195,1749384651899,-275.7582315,0.00021643,2]
[364988196,1749384651908,-1904.82,0.00021643,2]
[364988197,1749384651918,-440.0,0.00021643,2]
[364988198,1749384651927,-440.0,0.00021643,2]
[364988199,1749384651937,-440.0,0.00021643,2]
[364988200,1749384651946,-440.0,0.00021643,2]
[364988201,1749384651955,-708.52,0.00021643,2]
[364988202,1749384651965,-440.0,0.00021643,2]
[364988203,1749384651974,-440.0,0.00021643,2]
[364988204,1749384651983,-440.0,0.00021643,2]
[364988205,1749384651993,-440.0,0.00021643,2]
[364988206,1749384652002,-151.0,0.00021643,2]
[364988207,1749384652012,-440.0,0.00021643,2]
[364988208,1749384652022,-185.844602,0.00021643,2]
[364988209,1749384652031,-440.0,0.00021643,2]
[364988210,1749384652041,-151.0,0.00021643,2]
[364988211,1749384652050,-440.0,0.00021643,2]
[364988212,1749384652060,-440.0,0.00021643,2]
[364988213,1749384652069,-440.0,0.00021643,2]
[364988214,1749384652079,-1012.07,0.00021643,2]
[364988215,1749384652088,-1500.68,0.00021643,2]
[364988216,1749384652098,-627.61,0.00021643,2]
[364988217,1749384652108,-472.27,0.00021643,2]
[364988218,1749384652117,-2760.87,0.00021643,2]
[364988219,1749384652127,-2205.42,0.00021643,2]
[364988220,1749384652136,-1291.01,0.00021643,2]
[364988221,1749384652145,-440.0,0.00021643,2]
[364988222,1749384652155,-440.0,0.00021643,2]
[364988223,1749384652164,-440.0,0.00021643,2]
[364988224,1749384652174,-440.0,0.00021643,2]
[364988225,1749384652183,-2473.16,0.00021643,2]
[364988226,1749384652193,-779.1,0.00021643,2]
[364988227,1749384652202,-440.0,0.00021643,2]
[364988228,1749384652211,-440.0,0.00021643,2]
[364988229,1749384652221,-440.0,0.00021643,2]
[364988230,1749384652231,-1603.57,0.00021643,2]
[364988231,1749384652241,-2760.88,0.00021643,2]
[364988232,1749384652250,-440.0,0.00021643,2]
[364988233,1749384652260,-440.0,0.00021643,2]
[364988234,1749384652362,-440.0,0.00021643,2]
[364988235,1749384652372,-440.0,0.00021643,2]
[364988236,1749384652382,-1583.43,0.00021643,2]
[364988237,1749384652391,-687.75,0.00021643,2]
[364988238,1749384652401,-450.46,0.00021643,2]
[364988239,1749384652411,-966.08,0.00021643,2]
[364988240,1749384652420,-1825.6,0.00021643,2]
[364988241,1749384652430,-681.26,0.00021643,2]
[364988242,1749384652439,-440.0,0.00021643,2]
[364988243,1749384652449,-440.0,0.00021643,2]
[364988244,1749384652458,-504.24231058,0.00021668,2]
[364988245,1749384652468,-332.42012462,0.00021668,2]
[364988246,1749384652477,-500.0,0.00021668,2]
[364988247,1749384652487,-185.56515727,0.00021668,2]
[364988248,1749384652496,-500.0,0.00021668,2]
[364988249,1749384652505,-503.13190723,0.00021668,2]
[364988250,1749384652515,-500.0,0.00021668,2]
[364988251,1749384652524,-500.0,0.00021668,2]
[364988252,1749384652533,-579.61417338,0.00021668,2]
[364988253,1749384652542,-500.0,0.00021668,2]
[364988254,1749384652551,-500.0,0.00021668,2]
[364988255,1749384652563,-571.66149766,0.00021668,2]
[364988256,1749384652574,-500.0,0.00021668,2]
[364988257,1749384652583,-500.0,0.00021668,2]
[364988258,1749384652595,-500.0,0.00021668,2]
[364988259,1749384652606,-324.71,0.00021789,2]
[364988260,1749384652618,-1000.0,0.000218,4]
[364988261,1749384652628,-207.4,0.00021823,2]
[364988262,1749384652639,-5000.0,0.00021823,2]
[364988263,1749384652648,-500.0,0.00021823,2]
[364988264,1749384652659,-500.0,0.00021823,2]
[364988265,1749384652669,-500.0,0.00021823,2]
[364988266,1749384652679,-500.0,0.00021823,2]
[364988267,1749384652689,-500.0,0.00021823,2]
[364988268,1749384652698,-500.0,0.00021823,2]
[364988269,1749384652707,-500.0,0.00021823,2]
[364988270,1749384652717,-500.0,0.00021823,2]
[364988271,1749384652728,-500.0,0.00021823,2]
[364988272,1749384652739,-1688.0,0.00021823,2]
[364988273,1749384652750,-500.0,0.00021823,2]
[364988274,1749384652760,-500.0,0.00021823,2]
[364988275,1749384652770,-500.0,0.00021823,2]
[364988276,1749384652779,-258.0,0.00021823,2]
[364988277,1749384652789,-500.0,0.00021823,2]
[364988278,1749384652798,-500.0,0.00021823,2]
[364988279,1749384652807,-500.0,0.00021823,2]
[364988280,1749384652817,-500.0,0.00021823,2]
[364988281,1749384652826,-500.0,0.00021823,2]
[364988282,1749384652835,-500.0,0.00021823,2]
[364988283,1749384652845,-500.0,0.00021823,2]
[364988284,1749384652856,-500.0,0.00021823,2]
[364988285,1749384652866,-500.0,0.00021823,2]
[364988286,1749384652876,-500.0,0.00021823,2]
[364988287,1749384652886,-500.0,0.00021823,2]
[364988288,1749384652895,-500.0,0.00021823,2]
[364988289,1749384652905,-500.0,0.00021823,2]
[364988290,1749384652914,-500.0,0.00021823,2]
[364988291,1749384652923,-500.0,0.00021823,2]
[364988292,1749384652933,-500.0,0.00021823,2]
[364988293,1749384652942,-500.0,0.00021823,2]
[364988294,1749384652951,-500.0,0.00021823,2]
[364988295,1749384652961,-500.0,0.00021825,2]
[364988296,1749384652970,-500.0,0.00021825,2]
[364988297,1749384652979,-1750.456,0.00021878,2]
[364988298,1749384652989,-763.31,0.000219,2]
[364988299,1749384652999,-151.0,0.000219,2]
[364988300,1749384653009,-151.0,0.000219,2]
[364988301,1749384653018,-400.0,0.00021917,2]
[364988302,1749384653028,-470.0,0.00021917,2]
[364988303,1749384653038,-283.541517,0.00021917,2]
[364988304,1749384653048,-440.0,0.00021917,2]
[364988305,1749384653058,-500.0,0.00021917,2]
[364988306,1749384653069,-440.0,0.00021917,2]
[364988307,1749384653079,-440.0,0.00021917,2]
[364988308,1749384653088,-440.0,0.00021917,2]
[364988309,1749384653098,-440.0,0.00021917,2]
[364988310,1749384653107,-717.08,0.00021917,2]
[364988311,1749384653117,-698.82,0.00021917,2]
[364988312,1749384653127,-440.0,0.00021917,2]
[364988313,1749384653136,-440.0,0.00021917,2]
[364988314,1749384653146,-440.0,0.00021917,2]
[364988315,1749384653155,-440.0,0.00021917,2]
[364988316,1749384653165,-440.0,0.00021917,2]
[364988317,1749384653175,-937.47,0.00021917,2]
[364988318,1749384653184,-440.0,0.00021917,2]
[364988319,1749384653194,-1904.82,0.00021917,2]
[364988320,1749384653204,-440.0,0.00021917,2]
[364988321,1749384653213,-440.0,0.00021917,2]
[364988322,1749384653223,-440.0,0.00021917,2]
[364988323,1749384653233,-440.0,0.00021917,2]
[364988324,1749384653242,-708.52,0.00021917,2]
[364988325,1749384653252,-440.0,0.00021917,2]
[364988326,1749384653261,-440.0,0.00021917,2]
[364988327,1749384653271,-440.0,0.00021917,2]
[364988328,1749384653280,-440.0,0.00021917,2]
[364988329,1749384653290,-440.0,0.00021917,2]
[364988330,1749384653300,-440.0,0.00021917,2]
[364988331,1749384653310,-440.0,0.00021917,2]
[364988332,1749384653319,-440.0,0.00021917,2]
[364988333,1749384653328,-440.0,0.00021917,2]
[364988334,1749384653338,-1012.07,0.00021917,2]
[364988335,1749384653347,-1500.68,0.00021917,2]
[364988336,1749384653357,-627.61,0.00021917,2]
[364988337,1749384653367,-472.27,0.00021917,2]
[364988338,1749384653377,-2760.87,0.00021917,2]
[364988339,1749384653386,-2205.42,0.00021917,2]
[364988340,1749384653396,-1291.01,0.00021917,2]
[364988341,1749384653405,-440.0,0.00021917,2]
[364988342,1749384653416,-151.0,0.00021917,2]
[364988343,1749384653425,-440.0,0.00021917,2]
[364988344,1749384653435,-151.0,0.00021917,2]
[364988345,1749384653444,-245.15985704,0.00021917,2]
[364988346,1749384653454,-440.0,0.00021917,2]
[364988347,1749384653463,-2473.16,0.00021917,2]
[364988348,1749384653473,-779.1,0.00021917,2]
[364988349,1749384653482,-440.0,0.00021917,2]
[364988350,1749384653492,-440.0,0.00021917,2]
[364988351,1749384653502,-440.0,0.00021917,2]
[364988352,1749384653512,-1603.57,0.00021917,2]
[364988353,1749384653522,-2760.88,0.00021917,2]
[364988354,1749384653531,-440.0,0.00021917,2]
[364988355,1749384653541,-440.0,0.00021917,2]
[364988356,1749384653550,-151.0,0.00021917,2]
[364988357,1749384653565,-508.70099259,0.00021917,2]
[364988358,1749384653665,-440.0,0.00021917,2]
[364988359,1749384653675,-1583.43,0.00021917,2]
[364988360,1749384653685,-687.75,0.00021917,2]
[364988361,1749384653695,-450.46,0.00021917,2]
[364988362,1749384653704,-966.08,0.00021917,2]
[364988363,1749384653714,-1825.6,0.00021917,2]
[364988364,1749384653723,-681.26,0.00021917,2]
[364988365,1749384653733,-151.0,0.00021917,2]
[364988366,1749384653742,-440.0,0.00021917,2]
[364988367,1749384653752,-440.0,0.00021917,2]
[364988368,1749384653762,-151.0,0.00021917,2]
[364988369,1749384653771,-151.0,0.00021917,2]
[364988370,1749384653780,-153.0,0.00021918,2]
[364988371,1749384653790,-153.0,0.00021918,2]
[364988372,1749384653799,-153.0,0.00021918,2]
[364988373,1749384653808,-153.0,0.00021918,2]
[364988374,1749384653818,-153.0,0.00021918,2]
[364988375,1749384653827,-153.0,0.00021918,2]
[364988376,1749384653836,-368.94361835,0.00021918,2]
[364988377,1749384653845,-237.179429,0.00021918,2]
[364988378,1749384653854,-237.179429,0.00021918,2]
[364988379,1749384653863,-237.179429,0.00021918,2]
[364988380,1749384653873,-237.179429,0.00021918,2]
[364988381,1749384653883,-237.179429,0.00021918,2]
[364988382,1749384653892,-237.179429,0.00021918,2]
[364988383,1749384653902,-237.179429,0.00021918,2]
[364988384,1749384653911,-237.179429,0.00021918,2]
[364988385,1749384653920,-153.0,0.00021918,2]
[364988386,1749384653929,-153.0,0.00021918,2]
[364988387,1749384653939,-153.0,0.00021918,2]
[364988388,1749384653948,-153.0,0.00021918,2]
[364988389,1749384653958,-153.0,0.00021918,2]
[364988390,1749384653967,-153.0,0.00021918,2]
[364988391,1749384653976,-153.0,0.00021918,2]
[364988392,1749384653986,-153.0,0.00021918,2]
[364988393,1749384653996,-153.0,0.00021918,2]
[364988394,1749384654006,-153.0,0.00021918,2]
[364988395,1749384654016,-153.0,0.00021918,2]
[364988396,1749384654026,-153.0,0.00021918,2]
[364988397,1749384654036,-153.0,0.00021918,2]
[364988398,1749384654045,-153.0,0.00021918,2]
[364988399,1749384654055,-153.0,0.00021918,2]
[364988400,1749384654064,-153.0,0.00021918,2]
[364988401,1749384654074,-153.0,0.00021918,2]
[364988402,1749384654083,-153.0,0.00021918,2]
[364988403,1749384654093,-153.0,0.00021918,2]
[364988404,1749384654102,-153.0,0.00021918,2]
[364988405,1749384654112,-153.0,0.00021918,2]
[364988406,1749384654122,-153.0,0.00021918,2]
[364988407,1749384654132,-153.0,0.00021918,2]
[364988408,1749384654142,-153.0,0.00021918,2]
[364988409,1749384654152,-153.0,0.00021918,2]
[364988410,1749384654161,-153.0,0.00021918,2]
[364988411,1749384654171,-153.0,0.00021918,2]
[364988412,1749384654181,-153.0,0.00021918,2]
[364988413,1749384654191,-153.0,0.00021918,2]
[364988414,1749384654200,-153.0,0.00021918,2]
[364988415,1749384654210,-153.0,0.00021918,2]
[364988416,1749384654220,-153.0,0.00021918,2]
[364988417,1749384654230,-153.0,0.00021918,2]
[364988418,1749384654240,-153.0,0.00021918,2]
[364988419,1749384654250,-153.0,0.00021918,2]
[364988420,1749384654260,-153.0,0.00021918,2]
[364988421,1749384654269,-153.0,0.00021918,2]
[364988422,1749384654278,-153.0,0.00021918,2]
[364988423,1749384654288,-153.0,0.00021918,2]
[364988424,1749384654297,-153.0,0.00021918,2]
[364988425,1749384654307,-153.0,0.00021918,2]
[364988426,1749384654316,-153.0,0.00021918,2]
[364988427,1749384654325,-153.0,0.00021918,2]
[364988428,1749384654335,-153.0,0.00021918,2]
[364988429,1749384654344,-153.0,0.00021918,2]
[364988430,1749384654353,-153.0,0.00021918,2]
[364988431,1749384654363,-153.0,0.00021918,2]
[364988432,1749384654372,-153.0,0.00021918,2]
[364988433,1749384654382,-153.0,0.00021918,2]
[364988434,1749384654392,-153.0,0.00021918,2]
[364988435,1749384654402,-153.0,0.00021918,2]
[364988436,1749384654412,-153.0,0.00021918,2]
[364988437,1749384654422,-153.0,0.00021918,2]
[364988438,1749384654431,-153.0,0.00021918,2]
[364988439,1749384654441,-153.0,0.00021918,2]
[364988440,1749384654452,-153.0,0.00021918,2]
[364988441,1749384654461,-153.0,0.00021918,2]
[364988442,1749384654471,-153.0,0.00021918,2]
[364988443,1749384654480,-153.0,0.00021918,2]
[364988444,1749384654490,-153.0,0.00021918,2]
[364988445,1749384654499,-153.0,0.00021918,2]
[364988446,1749384654509,-153.0,0.00021918,2]
[364988447,1749384654518,-153.0,0.00021918,2]
[364988448,1749384654527,-153.0,0.00021918,2]
[364988449,1749384654536,-153.0,0.00021918,2]
[364988450,1749384654546,-153.0,0.00021918,2]
[364988451,1749384654556,-153.0,0.00021918,2]
[364988452,1749384654571,-153.0,0.00021918,2]
[364988453,1749384654580,-153.0,0.00021918,2]
[364988454,1749384654589,-153.0,0.00021918,2]
[364988455,1749384654599,-153.0,0.00021918,2]
[364988456,1749384654610,-153.0,0.00021918,2]
[364988457,1749384654620,-153.0,0.00021918,2]
[364988458,1749384654630,-153.0,0.00021918,2]
[364988459,1749384654641,-153.0,0.00021918,2]
[364988460,1749384654652,-153.0,0.00021918,2]
[364988461,1749384654662,-153.0,0.00021918,2]
[364988462,1749384654671,-153.0,0.00021918,2]
[364988463,1749384654680,-153.0,0.00021918,2]
[364988464,1749384654690,-153.0,0.00021918,2]
[364988465,1749384654699,-153.0,0.00021918,2]
[364988466,1749384654708,-153.0,0.00021918,2]
[364988467,1749384654718,-153.0,0.00021918,2]
[364988468,1749384654727,-153.0,0.00021918,2]
[364988469,1749384654736,-153.0,0.00021918,2]
[364988470,1749384654746,-153.0,0.00021918,2]
[364988471,1749384654756,-153.0,0.00021918,2]
[364988472,1749384654766,-153.0,0.00021918,2]
[364988473,1749384654861,-153.0,0.00021918,2]
[364988474,1749384654872,-153.0,0.00021918,2]
[364988475,1749384654882,-153.0,0.00021918,2]
[364988476,1749384654891,-153.0,0.00021918,2]
[364988477,1749384654902,-153.0,0.00021918,2]
[364988478,1749384654912,-153.0,0.00021918,2]
[364988479,1749384654921,-153.0,0.00021918,2]
[364988480,1749384654931,-153.0,0.00021918,2]
[364988481,1749384654941,-153.0,0.00021918,2]
[364988482,1749384654950,-153.0,0.00021918,2]
[364988483,1749384654962,-153.0,0.00021918,2]
[364988484,1749384654983,-153.0,0.00021918,2]
[364988485,1749384654996,-153.0,0.00021918,2]
[364988486,1749384655007,-153.0,0.00021918,2]
[364988487,1749384655017,-153.0,0.00021918,2]
[364988488,1749384655027,-153.0,0.00021918,2]
[364988489,1749384655036,-153.0,0.00021918,2]
[364988490,1749384655048,-153.0,0.00021918,2]
[364988491,1749384655058,-153.0,0.00021918,2]
[364988492,1749384655069,-153.0,0.00021918,2]
[364988493,1749384655078,-153.0,0.00021918,2]
[364988494,1749384655087,-153.0,0.00021918,2]
[364988495,1749384655096,-153.0,0.00021918,2]
[364988496,1749384655106,-153.0,0.00021918,2]
[364988497,1749384655116,-153.0,0.00021918,2]
[364988498,1749384655126,-153.0,0.00021918,2]
[364988499,1749384655136,-153.0,0.00021918,2]
[364988500,1749384655146,-153.0,0.00021918,2]
[364988501,1749384655156,-153.0,0.00021918,2]
[364988502,1749384655166,-153.0,0.00021918,2]
[364988503,1749384655175,-153.0,0.00021918,2]
[364988504,1749384655185,-153.0,0.00021918,2]
[364988505,1749384655194,-153.0,0.00021918,2]
[364988506,1749384655204,-153.0,0.00021918,2]
[364988507,1749384655215,-153.0,0.00021918,2]
[364988508,1749384655224,-153.0,0.00021918,2]
[364988509,1749384655235,-153.0,0.00021918,2]
[364988510,1749384655245,-153.0,0.00021918,2]
[364988511,1749384655255,-153.0,0.00021918,2]
[364988512,1749384655266,-153.0,0.00021918,2]
[364988513,1749384655276,-153.0,0.00021918,2]
[364988514,1749384655286,-153.0,0.00021918,2]
[364988515,1749384655297,-153.0,0.00021918,2]
[364988516,1749384655307,-153.0,0.00021918,2]
[364988517,1749384655319,-153.0,0.00021918,2]
[364988518,1749384655328,-153.0,0.00021918,2]
[364988519,1749384655338,-153.0,0.00021918,2]
[364988520,1749384655348,-153.0,0.00021918,2]
[364988521,1749384655359,-153.0,0.00021918,2]
[364988522,1749384655371,-153.0,0.00021918,2]
[364988523,1749384655380,-153.0,0.00021918,2]
[364988524,1749384655392,-153.0,0.00021918,2]
[364988525,1749384655403,-153.0,0.00021918,2]
[364988526,1749384655414,-153.0,0.00021918,2]
[364988527,1749384655425,-153.0,0.00021918,2]
[364988528,1749384655437,-153.0,0.00021918,2]
[364988529,1749384655448,-153.0,0.00021918,2]
[364988530,1749384655459,-153.0,0.00021918,2]
[364988531,1749384655470,-153.0,0.00021918,2]
[364988532,1749384655481,-153.0,0.00021918,2]
[364988533,1749384655492,-1200.0,0.00021978,2]
[364988534,1749384655502,-1755.35,0.00022,7]
[364988535,1749384655511,-500.0,0.00022,2]
[364988536,1749384655521,-172.0,0.00022,2]
[364988537,1749384655531,-134797.52,0.00022,7]
[364988538,1749384655541,-155.0,0.00022,2]
[364988539,1749384655551,-151.0,0.00022,7]
[364988540,1749384655565,-1008.8912997,0.00022063,2]
[364988541,1749384655574,-1007.15140232,0.00022063,2]
[364988542,1749384655584,-500.0,0.00022079,2]
[364988543,1749384655594,-502.46379211,0.00022079,2]
[364988544,1749384655605,-500.0,0.00022079,2]
[364988545,1749384655616,-500.0,0.00022079,2]
[364988546,1749384655625,-600.0,0.00022079,2]
[364988547,1749384655635,-500.0,0.00022079,2]
[364988548,1749384655646,-500.0,0.00022079,2]
[364988549,1749384655655,-502.73358595,0.00022079,2]
[364988550,1749384655665,-419.19126592,0.00022079,2]
[364988551,1749384655675,-500.0,0.00022079,2]
[364988552,1749384655685,-500.0,0.00022079,2]
[364988553,1749384655695,-500.0,0.00022079,2]
[364988554,1749384655705,-500.0,0.00022079,2]
[364988555,1749384655714,-500.0,0.00022079,2]
[364988556,1749384655724,-539.10919604,0.00022079,2]
[364988557,1749384655734,-500.0,0.00022079,2]
[364988558,1749384655744,-503.77391518,0.00022079,2]
[364988559,1749384655753,-501.07588045,0.00022081,2]
[364988560,1749384655763,-401.2981245,0.00022091,2]
[364988561,1749384655772,-500.0,0.00022091,2]
[364988562,1749384655781,-479.68947817,0.00022091,2]
[364988563,1749384655791,-502.16556292,0.00022091,2]
[364988564,1749384655800,-1000.0,0.0002214,2]
[364988565,1749384655811,-1000.0,0.00022171,2]
[364988566,1749384655821,-440.0,0.00022191,4]
[364988567,1749384655831,-440.0,0.00022191,4]
[364988568,1749384655841,-440.0,0.00022191,4]
[364988569,1749384655851,-317.97675126,0.00022191,4]
[364988570,1749384655861,-717.08,0.00022191,4]
[364988571,1749384655871,-698.82,0.00022191,4]
[364988572,1749384655881,-440.0,0.00022191,4]
[364988573,1749384655891,-440.0,0.00022191,4]
[364988574,1749384655900,-440.0,0.00022191,4]
[364988575,1749384655910,-440.0,0.00022191,4]
[364988576,1749384655919,-440.0,0.00022191,4]
[364988577,1749384655928,-937.47,0.00022191,4]
[364988578,1749384655938,-440.0,0.00022191,4]
[364988579,1749384656032,-1904.82,0.00022191,4]
[364988580,1749384656042,-440.0,0.00022191,4]
[364988581,1749384656051,-440.0,0.00022191,4]
[364988582,1749384656061,-440.0,0.00022191,4]
[364988583,1749384656071,-440.0,0.00022191,4]
[364988584,1749384656081,-708.52,0.00022191,4]
[364988585,1749384656091,-440.0,0.00022191,4]
[364988586,1749384656101,-440.0,0.00022191,4]
[364988587,1749384656110,-440.0,0.00022191,4]
[364988588,1749384656121,-440.0,0.00022191,4]
[364988589,1749384656130,-151.0,0.00022191,7]
[364988590,1749384656141,-440.0,0.00022191,4]
[364988591,1749384656151,-440.0,0.00022191,4]
[364988592,1749384656161,-151.0,0.00022191,7]
[364988593,1749384656172,-440.0,0.00022191,4]
[364988594,1749384656182,-440.0,0.00022191,4]
[364988595,1749384656193,-485.7,0.00022191,4]
[364988596,1749384656203,-1012.07,0.00022191,4]
[364988597,1749384656213,-1500.68,0.00022191,4]
[364988598,1749384656223,-627.61,0.00022191,4]
[364988599,1749384656233,-472.27,0.00022191,2]
[364988600,1749384656244,-2760.87,0.00022191,4]
[364988601,1749384656254,-2205.42,0.00022191,4]
[364988602,1749384656264,-1291.01,0.00022191,4]
[364988603,1749384656274,-440.0,0.00022191,4]
[364988604,1749384656285,-440.0,0.00022191,4]
[364988605,1749384656295,-440.0,0.00022191,4]
[364988606,1749384656305,-2473.16,0.00022191,4]
[364988607,1749384656315,-779.1,0.00022191,4]
[364988608,1749384656328,-440.0,0.00022191,4]
[364988609,1749384656338,-440.0,0.00022191,4]
[364988610,1749384656348,-440.0,0.00022191,4]
[364988611,1749384656358,-1603.57,0.00022191,4]
[364988612,1749384656368,-2760.88,0.00022191,4]
[364988613,1749384656378,-440.0,0.00022191,4]
[364988614,1749384656388,-440.0,0.00022191,4]
[364988615,1749384656398,-440.0,0.00022191,4]
[364988616,1749384656408,-1583.43,0.00022191,4]
[364988617,1749384656418,-687.75,0.00022191,4]
[364988618,1749384656429,-450.46,0.00022191,4]
[364988619,1749384656439,-966.08,0.00022191,4]
[364988620,1749384656449,-1825.6,0.00022191,4]
[364988621,1749384656460,-681.26,0.00022191,4]
[364988622,1749384656470,-440.0,0.00022191,4]
[364988623,1749384656480,-440.0,0.00022191,4]
[364988624,1749384656489,-189.17302754,0.000222,69]
[364988625,1749384656499,-189.17302754,0.000222,69]
[364988626,1749384656511,-189.17302754,0.000222,69]
[364988627,1749384656527,-43698.92,0.000222,2]
[364988628,1749384656552,-1005.77576228,0.00022216,2]
[364988629,1749384656575,-1000.0,0.00022216,2]
[364988630,1749384656599,-1000.0,0.00022216,2]
[364988631,1749384656624,-1000.0,0.00022216,2]
[364988632,1749384656644,-1000.0,0.00022216,2]
[364988633,1749384656665,-1000.0,0.00022216,2]
[364988634,1749384656686,-1000.0,0.00022216,2]
[364988635,1749384656703,-1000.0,0.00022216,2]
[364988636,1749384656725,-1043.69912394,0.00022216,2]
[364988637,1749384656748,-151.0,0.000223,7]
[364988638,1749384656768,-5000.0,0.00022371,2]
[364988639,1749384656785,-500.0,0.00022373,2]
[364988640,1749384656805,-1000.0,0.00022373,2]
[364988641,1749384656823,-1967.502,0.00022429,2]
[364988642,1749384656840,-783.758,0.00022429,2]